[Event "Titled Tuesday Blitz April 05 Early 2022"]
[White "Ianov, Viktor"]
[Black "Melikhov, Evgeny V."]
[WhiteFideId "14102730"]
[BlackFideId "4122046"]
[WhiteElo "2161"]
[BlackElo "1931"]
[Result "1-0"]
[Round "04"]
[TimeControl "180+1"]
[Date "2022.04.05"]
[WhiteClock "0:01:13"]
[BlackClock "0:00:07"]

1. Nf3 {[%clk 0:03:00]}  f5 {[%clk 0:02:59]} 2. g3 {[%clk 0:02:58]}  Nf6 {[%clk 0:02:59]} 3. Bg2 {[%clk 0:02:59]}  g6 {[%clk 0:03:00]} 4. c4 {[%clk 0:02:59]}  Bg7 {[%clk 0:03:00]} 5. Nc3 {[%clk 0:02:59]}  d6 {[%clk 0:03:00]} 6. d3 {[%clk 0:02:59]}  e5 {[%clk 0:02:59]} 7. Rb1 {[%clk 0:02:59]}  O-O {[%clk 0:02:59]} 8. O-O {[%clk 0:02:58]}  Nc6 {[%clk 0:02:57]} 9. b4 {[%clk 0:02:58]}  Ne7 {[%clk 0:02:57]} 10. b5 {[%clk 0:02:58]}  h6 {[%clk 0:02:53]} 11. a4 {[%clk 0:02:58]}  g5 {[%clk 0:02:49]} 12. Ba3 {[%clk 0:02:58]}  f4 {[%clk 0:02:25]} 13. Qb3 {[%clk 0:02:56]}  Be6 {[%clk 0:02:19]} 14. Nd2 {[%clk 0:02:53]}  Qe8 {[%clk 0:02:10]} 15. Nd5 {[%clk 0:02:51]}  Nexd5 {[%clk 0:02:04]} 16. cxd5 {[%clk 0:02:50]}  Bg4 {[%clk 0:01:48]} 17. Rfe1 {[%clk 0:02:36]}  Qh5 {[%clk 0:01:43]} 18. Nf3 {[%clk 0:02:35]}  Bh3 {[%clk 0:01:26]} 19. Rbc1 {[%clk 0:02:25]}  Rf7 {[%clk 0:01:21]} 20. Rc2 {[%clk 0:02:22]}  Bxg2 {[%clk 0:01:19]} 21. Kxg2 {[%clk 0:02:21]}  Re8 {[%clk 0:00:59]} 22. a5 {[%clk 0:02:19]}  b6 {[%clk 0:00:57]} 23. axb6 {[%clk 0:02:17]}  axb6 {[%clk 0:00:56]} 24. Rec1 {[%clk 0:02:17]}  Ree7 {[%clk 0:00:50]} 25. Qa4 {[%clk 0:02:14]}  e4 {[%clk 0:00:48]} 26. dxe4 {[%clk 0:02:11]}  Nxe4 {[%clk 0:00:48]} 27. Bb2 {[%clk 0:02:03]}  Bxb2 {[%clk 0:00:43]} 28. Rxb2 {[%clk 0:02:02]}  Nc5 {[%clk 0:00:40]} 29. Qc2 {[%clk 0:01:51]}  g4 {[%clk 0:00:36]} 30. Nh4 {[%clk 0:01:43]}  Qxd5+ {[%clk 0:00:36]} 31. Kg1 {[%clk 0:01:41]}  Qe4 {[%clk 0:00:32]} 32. Ng6 {[%clk 0:01:34]}  Re6 {[%clk 0:00:14]} 33. Nxf4 {[%clk 0:01:31]}  Rxf4 {[%clk 0:00:12]} 34. gxf4 {[%clk 0:01:30]}  Qxf4 {[%clk 0:00:12]} 35. Qc4 {[%clk 0:01:25]}  Qe5 {[%clk 0:00:10]} 36. Ra2 {[%clk 0:01:23]}  h5 {[%clk 0:00:11]} 37. Ra8+ {[%clk 0:01:20]}  Kg7 {[%clk 0:00:11]} 38. e3 {[%clk 0:01:19]}  Re7 {[%clk 0:00:07]} 39. Qc3 {[%clk 0:01:18]}  Ne4 {[%clk 0:00:06]} 40. Qxe5+ {[%clk 0:01:17]}  Rxe5 {[%clk 0:00:06]} 41. Rxc7+ {[%clk 0:01:16]}  Kg6 {[%clk 0:00:07]} 42. Rg8+ {[%clk 0:01:15]}  Kf6 {[%clk 0:00:06]} 43. Rf8+ {[%clk 0:01:14]}  Ke6 {[%clk 0:00:07]} 44. Re8+ {[%clk 0:01:14]}  Kd5 {[%clk 0:00:07]} 45. Rxe5+ {[%clk 0:01:14]}  Kxe5 {[%clk 0:00:07]} 46. Rc6 {[%clk 0:01:14]}  Nd2 {[%clk 0:00:07]} 47. Rxb6 {[%clk 0:01:13]} 1-0


[Site "https://www.chess.com"]

[Event "Titled Tuesday Blitz April 05 Early 2022"]
[White "Iljin, Timofey"]
[Black "Sahil, Tickoo"]
[WhiteFideId "14110180"]
[BlackFideId "5019710"]
[WhiteElo "2396"]
[BlackElo "2099"]
[Result "1/2-1/2"]
[Round "04"]
[TimeControl "180+1"]
[Date "2022.04.05"]
[WhiteClock "0:00:36"]
[BlackClock "0:00:09"]

1. e4 {[%clk 0:03:00]}  c5 {[%clk 0:02:59]} 2. c3 {[%clk 0:03:00]}  d5 {[%clk 0:02:59]} 3. exd5 {[%clk 0:02:48]}  Nf6 {[%clk 0:02:49]} 4. d4 {[%clk 0:02:49]}  Nxd5 {[%clk 0:02:46]} 5. Nf3 {[%clk 0:02:49]}  e6 {[%clk 0:02:45]} 6. Bd3 {[%clk 0:02:48]}  cxd4 {[%clk 0:02:44]} 7. cxd4 {[%clk 0:02:49]}  Bb4+ {[%clk 0:02:40]} 8. Bd2 {[%clk 0:02:48]}  Bxd2+ {[%clk 0:02:39]} 9. Qxd2 {[%clk 0:02:49]}  Nc6 {[%clk 0:02:39]} 10. O-O {[%clk 0:02:46]}  O-O {[%clk 0:02:39]} 11. Nc3 {[%clk 0:02:46]}  Nce7 {[%clk 0:02:37]} 12. Ne4 {[%clk 0:02:43]}  Ng6 {[%clk 0:02:32]} 13. Neg5 {[%clk 0:02:36]}  b6 {[%clk 0:02:27]} 14. Rfe1 {[%clk 0:02:29]}  Bb7 {[%clk 0:02:22]} 15. Ne5 {[%clk 0:02:16]}  Ndf4 {[%clk 0:01:50]} 16. Nxg6 {[%clk 0:01:50]}  Nxg6 {[%clk 0:01:21]} 17. Bxg6 {[%clk 0:01:48]}  hxg6 {[%clk 0:01:17]} 18. Qf4 {[%clk 0:01:48]}  Qd5 {[%clk 0:01:01]} 19. Qg4 {[%clk 0:01:47]}  Rfe8 {[%clk 0:00:38]} 20. Re5 {[%clk 0:01:37]}  Qxg2+ {[%clk 0:00:19]} 21. Qxg2 {[%clk 0:01:36]}  Bxg2 {[%clk 0:00:19]} 22. Kxg2 {[%clk 0:01:37]}  f6 {[%clk 0:00:20]} 23. Rxe6 {[%clk 0:01:37]}  fxg5 {[%clk 0:00:19]} 24. Rxg6 {[%clk 0:01:37]}  Rad8 {[%clk 0:00:19]} 25. Rd1 {[%clk 0:01:36]}  Re4 {[%clk 0:00:18]} 26. Rxg5 {[%clk 0:01:34]}  Rexd4 {[%clk 0:00:18]} 27. Rxd4 {[%clk 0:01:34]}  Rxd4 {[%clk 0:00:19]} 28. Re5 {[%clk 0:01:35]}  Rd2 {[%clk 0:00:19]} 29. Re8+ {[%clk 0:01:33]}  Kh7 {[%clk 0:00:19]} 30. Re7 {[%clk 0:01:27]}  Rxb2 {[%clk 0:00:18]} 31. Rxa7 {[%clk 0:01:26]}  b5 {[%clk 0:00:19]} 32. Kf3 {[%clk 0:01:26]}  b4 {[%clk 0:00:18]} 33. Kg3 {[%clk 0:01:25]}  b3 {[%clk 0:00:17]} 34. axb3 {[%clk 0:01:25]}  Rxb3+ {[%clk 0:00:18]} 35. f3 {[%clk 0:01:26]}  Kh6 {[%clk 0:00:18]} 36. h4 {[%clk 0:01:27]}  g6 {[%clk 0:00:17]} 37. Ra8 {[%clk 0:01:24]}  Rb1 {[%clk 0:00:17]} 38. Kg4 {[%clk 0:01:21]}  Rg1+ {[%clk 0:00:16]} 39. Kf4 {[%clk 0:01:22]}  Rh1 {[%clk 0:00:17]} 40. Ke5 {[%clk 0:01:18]}  Kg7 {[%clk 0:00:15]} 41. Ra7+ {[%clk 0:01:17]}  Kh6 {[%clk 0:00:13]} 42. Ra4 {[%clk 0:01:09]}  Rc1 {[%clk 0:00:13]} 43. Kf4 {[%clk 0:01:04]}  Rc5 {[%clk 0:00:12]} 44. Kg4 {[%clk 0:01:03]}  Rd5 {[%clk 0:00:12]} 45. Ra6 {[%clk 0:01:02]}  Rc5 {[%clk 0:00:10]} 46. f4 {[%clk 0:01:02]}  Rf5 {[%clk 0:00:10]} 47. Ra8 {[%clk 0:00:59]}  Rc5 {[%clk 0:00:09]} 48. Rf8 {[%clk 0:00:57]}  Rc1 {[%clk 0:00:08]} 49. Rd8 {[%clk 0:00:53]}  Rg1+ {[%clk 0:00:07]} 50. Kf3 {[%clk 0:00:54]}  Rf1+ {[%clk 0:00:06]} 51. Ke4 {[%clk 0:00:54]}  Re1+ {[%clk 0:00:06]} 52. Kf3 {[%clk 0:00:53]}  Rf1+ {[%clk 0:00:06]} 53. Kg3 {[%clk 0:00:53]}  Rg1+ {[%clk 0:00:06]} 54. Kf2 {[%clk 0:00:53]}  Rb1 {[%clk 0:00:06]} 55. Rd6 {[%clk 0:00:52]}  Rb2+ {[%clk 0:00:06]} 56. Kg3 {[%clk 0:00:51]}  Kg7 {[%clk 0:00:07]} 57. Kg4 {[%clk 0:00:51]}  Rg2+ {[%clk 0:00:06]} 58. Kf3 {[%clk 0:00:52]}  Rb2 {[%clk 0:00:07]} 59. f5 {[%clk 0:00:47]}  gxf5 {[%clk 0:00:07]} 60. Kf4 {[%clk 0:00:48]}  Rb4+ {[%clk 0:00:07]} 61. Kg5 {[%clk 0:00:48]}  Rg4+ {[%clk 0:00:07]} 62. Kh5 {[%clk 0:00:47]}  Rg1 {[%clk 0:00:08]} 63. Rd7+ {[%clk 0:00:40]}  Kf6 {[%clk 0:00:08]} 64. Kh6 {[%clk 0:00:40]}  Ke5 {[%clk 0:00:08]} 65. h5 {[%clk 0:00:39]}  f4 {[%clk 0:00:08]} 66. Re7+ {[%clk 0:00:39]}  Kd4 {[%clk 0:00:08]} 67. Kh7 {[%clk 0:00:39]}  f3 {[%clk 0:00:09]} 68. h6 {[%clk 0:00:38]}  f2 {[%clk 0:00:09]} 69. Rf7 {[%clk 0:00:38]}  f1=Q {[%clk 0:00:08]} 70. Rxf1 {[%clk 0:00:38]}  Rxf1 {[%clk 0:00:09]} 71. Kh8 {[%clk 0:00:36]}  Rg1 {[%clk 0:00:09]} 72. h7 {[%clk 0:00:36]}  Ke5 {[%clk 0:00:09]} 1/2-1/2


[Site "https://www.chess.com"]

[Event "Titled Tuesday Blitz April 05 Early 2022"]
[White "Ilyasli, Ughur"]
[Black "Prado Lobo, Jonas"]
[WhiteFideId "13416197"]
[BlackFideId "32050666"]
[WhiteElo "2045"]
[BlackElo "2214"]
[Result "0-1"]
[Round "04"]
[TimeControl "180+1"]
[Date "2022.04.05"]
[WhiteClock "0:00:05"]
[BlackClock "0:00:17"]

1. d4 {[%clk 0:03:00]}  Nf6 {[%clk 0:02:59]} 2. c4 {[%clk 0:03:01]}  g6 {[%clk 0:02:59]} 3. Nc3 {[%clk 0:03:01]}  d5 {[%clk 0:03:00]} 4. Nf3 {[%clk 0:03:00]}  Bg7 {[%clk 0:02:59]} 5. Qb3 {[%clk 0:03:00]}  c6 {[%clk 0:02:57]} 6. cxd5 {[%clk 0:02:57]}  Nxd5 {[%clk 0:02:51]} 7. Bd2 {[%clk 0:02:55]}  O-O {[%clk 0:02:48]} 8. e4 {[%clk 0:02:55]}  Nb6 {[%clk 0:02:44]} 9. Rd1 {[%clk 0:02:50]}  Bg4 {[%clk 0:02:41]} 10. Be3 {[%clk 0:02:35]}  N8d7 {[%clk 0:02:40]} 11. a4 {[%clk 0:02:31]}  e5 {[%clk 0:02:31]} 12. d5 {[%clk 0:02:08]}  cxd5 {[%clk 0:02:26]} 13. exd5 {[%clk 0:01:59]}  e4 {[%clk 0:01:52]} 14. Nxe4 {[%clk 0:01:55]}  Re8 {[%clk 0:01:37]} 15. Nd6 {[%clk 0:01:43]}  Bxf3 {[%clk 0:01:11]} 16. Nxe8 {[%clk 0:00:46]}  Bxd1 {[%clk 0:01:10]} 17. Qxd1 {[%clk 0:00:37]}  Qxe8 {[%clk 0:01:10]} 18. a5 {[%clk 0:00:31]}  Nc8 {[%clk 0:01:01]} 19. b4 {[%clk 0:00:30]}  Qe4 {[%clk 0:00:49]} 20. Bb5 {[%clk 0:00:23]}  Qxb4+ {[%clk 0:00:47]} 21. Qd2 {[%clk 0:00:14]}  Qxb5 {[%clk 0:00:48]} 22. h4 {[%clk 0:00:07]}  Nd6 {[%clk 0:00:48]} 23. h5 {[%clk 0:00:04]}  Nc4 {[%clk 0:00:42]} 24. Qc2 {[%clk 0:00:03]}  Qxa5+ {[%clk 0:00:38]} 25. Ke2 {[%clk 0:00:02]}  Nxe3 {[%clk 0:00:32]} 26. fxe3 {[%clk 0:00:03]}  Qxd5 {[%clk 0:00:32]} 27. Kf2 {[%clk 0:00:01]}  Qf5+ {[%clk 0:00:30]} 28. Qxf5 {[%clk 0:00:02]}  gxf5 {[%clk 0:00:31]} 29. h6 {[%clk 0:00:02]}  Bf8 {[%clk 0:00:21]} 30. Rh5 {[%clk 0:00:03]}  Re8 {[%clk 0:00:20]} 31. Rxf5 {[%clk 0:00:03]}  Bxh6 {[%clk 0:00:20]} 32. g4 {[%clk 0:00:04]}  Bxe3+ {[%clk 0:00:20]} 33. Kf3 {[%clk 0:00:05]}  Bb6 {[%clk 0:00:19]} 34. Rd5 {[%clk 0:00:05]}  Ne5+ {[%clk 0:00:18]} 35. Kf4 {[%clk 0:00:05]}  Ng6+ {[%clk 0:00:18]} 36. Kg5 {[%clk 0:00:05]}  Re5+ {[%clk 0:00:18]} 37. Kh6 {[%clk 0:00:04]}  Rxd5 {[%clk 0:00:17]} 38. g5 {[%clk 0:00:05]}  Rd4 {[%clk 0:00:16]} 39. Kh5 {[%clk 0:00:05]}  Rh4# {[%clk 0:00:17]} 0-1


[Site "https://www.chess.com"]

[Event "Titled Tuesday Blitz April 05 Early 2022"]
[White "Jakubowska, Anna"]
[Black "Simonovic, Miroslav"]
[WhiteFideId "1121952"]
[BlackFideId "919152"]
[WhiteElo "1924"]
[BlackElo "2043"]
[Result "1-0"]
[Round "04"]
[TimeControl "180+1"]
[Date "2022.04.05"]
[WhiteClock "0:00:18"]
[BlackClock "0:00:01"]

1. e4 {[%clk 0:03:00]}  c5 {[%clk 0:02:57]} 2. Nf3 {[%clk 0:02:57]}  Nc6 {[%clk 0:02:58]} 3. d4 {[%clk 0:02:57]}  cxd4 {[%clk 0:02:59]} 4. Nxd4 {[%clk 0:02:57]}  e5 {[%clk 0:02:59]} 5. Nb5 {[%clk 0:02:56]}  d6 {[%clk 0:02:59]} 6. c4 {[%clk 0:02:57]}  Be6 {[%clk 0:02:58]} 7. N1c3 {[%clk 0:02:56]}  a6 {[%clk 0:02:57]} 8. Na3 {[%clk 0:02:56]}  Rc8 {[%clk 0:02:58]} 9. Be2 {[%clk 0:02:51]}  Be7 {[%clk 0:02:58]} 10. O-O {[%clk 0:02:51]}  Nf6 {[%clk 0:02:58]} 11. h3 {[%clk 0:02:48]}  O-O {[%clk 0:02:59]} 12. Be3 {[%clk 0:02:48]}  Na5 {[%clk 0:02:59]} 13. b3 {[%clk 0:02:21]}  b5 {[%clk 0:02:58]} 14. Nc2 {[%clk 0:02:18]}  bxc4 {[%clk 0:02:57]} 15. b4 {[%clk 0:02:18]}  Nc6 {[%clk 0:02:28]} 16. Qd2 {[%clk 0:02:15]}  d5 {[%clk 0:02:26]} 17. exd5 {[%clk 0:02:12]}  Nxd5 {[%clk 0:02:27]} 18. Nxd5 {[%clk 0:02:00]}  Qxd5 {[%clk 0:02:25]} 19. Rad1 {[%clk 0:01:58]}  Rfd8 {[%clk 0:02:00]} 20. Qc3 {[%clk 0:01:56]}  Qb5 {[%clk 0:01:52]} 21. a3 {[%clk 0:01:49]}  a5 {[%clk 0:01:36]} 22. bxa5 {[%clk 0:01:44]}  Qxa5 {[%clk 0:01:22]} 23. Rxd8+ {[%clk 0:01:32]}  Rxd8 {[%clk 0:01:22]} 24. Qxa5 {[%clk 0:01:31]}  Nxa5 {[%clk 0:01:23]} 25. Bb6 {[%clk 0:01:31]}  Rd2 {[%clk 0:01:15]} 26. Bxa5 {[%clk 0:01:14]}  Rxc2 {[%clk 0:01:10]} 27. Bd1 {[%clk 0:01:07]}  Ra2 {[%clk 0:00:59]} 28. Bc3 {[%clk 0:01:05]}  f6 {[%clk 0:00:55]} 29. f4 {[%clk 0:01:05]}  Rxa3 {[%clk 0:00:42]} 30. Bd2 {[%clk 0:01:04]}  Rd3 {[%clk 0:00:32]} 31. Bc1 {[%clk 0:01:00]}  Bd6 {[%clk 0:00:16]} 32. Be2 {[%clk 0:00:56]}  Rb3 {[%clk 0:00:11]} 33. Rd1 {[%clk 0:00:55]}  Be7 {[%clk 0:00:09]} 34. fxe5 {[%clk 0:00:45]}  fxe5 {[%clk 0:00:09]} 35. Bf3 {[%clk 0:00:46]}  Rb1 {[%clk 0:00:08]} 36. Be4 {[%clk 0:00:42]}  g6 {[%clk 0:00:06]} 37. Bxb1 {[%clk 0:00:41]}  Bc5+ {[%clk 0:00:06]} 38. Kf1 {[%clk 0:00:40]}  c3 {[%clk 0:00:06]} 39. Ke2 {[%clk 0:00:38]}  Bb3 {[%clk 0:00:02]} 40. Rd8+ {[%clk 0:00:26]}  Kf7 {[%clk 0:00:03]} 41. Rc8 {[%clk 0:00:26]}  Bd4 {[%clk 0:00:02]} 42. Be3 {[%clk 0:00:23]}  Bd5 {[%clk 0:00:02]} 43. Bxd4 {[%clk 0:00:21]}  exd4 {[%clk 0:00:03]} 44. g3 {[%clk 0:00:20]}  Kf6 {[%clk 0:00:01]} 45. h4 {[%clk 0:00:19]}  Ke5 {[%clk 0:00:02]} 46. Bd3 {[%clk 0:00:19]}  Bg2 {[%clk 0:00:01]} 47. Kf2 {[%clk 0:00:18]} 1-0


[Site "https://www.chess.com"]

[Event "Titled Tuesday Blitz April 05 Early 2022"]
[White "Koellner, Ruben Gideon"]
[Black "Noritsyn, Nikolay"]
[WhiteFideId "12993093"]
[BlackFideId "2604922"]
[WhiteElo "2547"]
[BlackElo "2527"]
[Result "1-0"]
[Round "04"]
[TimeControl "180+1"]
[Date "2022.04.05"]
[WhiteClock "0:00:07"]
[BlackClock "0:00:02"]

1. d4 {[%clk 0:03:00]}  d5 {[%clk 0:02:54]} 2. Bf4 {[%clk 0:03:00]}  e6 {[%clk 0:02:53]} 3. e3 {[%clk 0:03:01]}  Bd6 {[%clk 0:02:53]} 4. Bg3 {[%clk 0:03:00]}  Nf6 {[%clk 0:02:53]} 5. Nd2 {[%clk 0:03:00]}  b6 {[%clk 0:02:54]} 6. c3 {[%clk 0:02:59]}  Bb7 {[%clk 0:02:54]} 7. Bd3 {[%clk 0:02:59]}  Nbd7 {[%clk 0:02:55]} 8. Ngf3 {[%clk 0:02:57]}  Qe7 {[%clk 0:02:55]} 9. Qe2 {[%clk 0:02:57]}  h5 {[%clk 0:02:52]} 10. Rd1 {[%clk 0:02:56]}  Ne4 {[%clk 0:02:48]} 11. Bxd6 {[%clk 0:02:32]}  cxd6 {[%clk 0:02:49]} 12. h4 {[%clk 0:02:32]}  O-O-O {[%clk 0:02:14]} 13. Ba6 {[%clk 0:02:29]}  Ndf6 {[%clk 0:02:13]} 14. a4 {[%clk 0:02:27]}  Bxa6 {[%clk 0:02:11]} 15. Qxa6+ {[%clk 0:02:28]}  Qb7 {[%clk 0:02:11]} 16. Qxb7+ {[%clk 0:02:28]}  Kxb7 {[%clk 0:02:12]} 17. Nxe4 {[%clk 0:02:27]}  Nxe4 {[%clk 0:02:11]} 18. Ng5 {[%clk 0:02:27]}  Nxg5 {[%clk 0:02:10]} 19. hxg5 {[%clk 0:02:28]}  Rc8 {[%clk 0:02:06]} 20. Kd2 {[%clk 0:02:27]}  g6 {[%clk 0:01:48]} 21. Rh4 {[%clk 0:02:26]}  Rc4 {[%clk 0:01:39]} 22. Ra1 {[%clk 0:02:23]}  Rhc8 {[%clk 0:01:34]} 23. Kc2 {[%clk 0:02:20]}  Ka6 {[%clk 0:01:31]} 24. Kb3 {[%clk 0:02:20]}  Kb7 {[%clk 0:01:26]} 25. Rf4 {[%clk 0:02:11]}  R8c7 {[%clk 0:01:21]} 26. g4 {[%clk 0:02:10]}  hxg4 {[%clk 0:01:21]} 27. Rxg4 {[%clk 0:02:11]}  Rc8 {[%clk 0:01:14]} 28. Rh4 {[%clk 0:02:09]}  Kc7 {[%clk 0:01:07]} 29. Rh7 {[%clk 0:02:07]}  Rf8 {[%clk 0:01:07]} 30. e4 {[%clk 0:01:57]}  Kd7 {[%clk 0:01:02]} 31. exd5 {[%clk 0:01:57]}  exd5 {[%clk 0:01:03]} 32. f4 {[%clk 0:01:55]}  Rcc8 {[%clk 0:00:55]} 33. Rf1 {[%clk 0:01:50]}  Ke6 {[%clk 0:00:45]} 34. Re1+ {[%clk 0:01:20]}  Kd7 {[%clk 0:00:43]} 35. f5 {[%clk 0:01:18]}  gxf5 {[%clk 0:00:42]} 36. g6 {[%clk 0:01:15]}  Rce8 {[%clk 0:00:41]} 37. Rxe8 {[%clk 0:01:04]}  Rxe8 {[%clk 0:00:38]} 38. Rxf7+ {[%clk 0:01:03]}  Ke6 {[%clk 0:00:39]} 39. Rxa7 {[%clk 0:00:59]}  f4 {[%clk 0:00:38]} 40. Kc2 {[%clk 0:00:56]}  Rg8 {[%clk 0:00:35]} 41. g7 {[%clk 0:00:55]}  Kf5 {[%clk 0:00:31]} 42. Kd3 {[%clk 0:00:51]}  Kg4 {[%clk 0:00:31]} 43. Ke2 {[%clk 0:00:49]}  Kg3 {[%clk 0:00:31]} 44. Rf7 {[%clk 0:00:48]}  Re8+ {[%clk 0:00:25]} 45. Kf1 {[%clk 0:00:47]}  Rg8 {[%clk 0:00:26]} 46. Rb7 {[%clk 0:00:22]}  Kf3 {[%clk 0:00:21]} 47. Re7 {[%clk 0:00:21]}  Kg3 {[%clk 0:00:19]} 48. b4 {[%clk 0:00:19]}  Kf3 {[%clk 0:00:18]} 49. Rb7 {[%clk 0:00:17]}  Kg3 {[%clk 0:00:16]} 50. a5 {[%clk 0:00:17]}  bxa5 {[%clk 0:00:15]} 51. bxa5 {[%clk 0:00:18]}  Kf3 {[%clk 0:00:08]} 52. a6 {[%clk 0:00:18]}  Rc8 {[%clk 0:00:07]} 53. Rf7 {[%clk 0:00:15]}  Rb8 {[%clk 0:00:06]} 54. Kg1 {[%clk 0:00:12]}  Kg3 {[%clk 0:00:05]} 55. Kf1 {[%clk 0:00:11]}  f3 {[%clk 0:00:05]} 56. Ke1 {[%clk 0:00:10]}  Kg2 {[%clk 0:00:02]} 57. Rf8 {[%clk 0:00:07]} 1-0


[Site "https://www.chess.com"]

[Event "Titled Tuesday Blitz April 05 Early 2022"]
[White "Kokoszczynski, Jan"]
[Black "Muradov, Soltan"]
[WhiteFideId "1174460"]
[BlackFideId "14002108"]
[WhiteElo "2163"]
[BlackElo "1854"]
[Result "1-0"]
[Round "04"]
[TimeControl "180+1"]
[Date "2022.04.05"]
[WhiteClock "0:00:11"]
[BlackClock "0:00:03"]

1. d4 {[%clk 0:02:59]}  Nf6 {[%clk 0:02:47]} 2. c4 {[%clk 0:02:58]}  e6 {[%clk 0:02:44]} 3. Nc3 {[%clk 0:02:57]}  Bb4 {[%clk 0:02:43]} 4. Nf3 {[%clk 0:02:57]}  Ne4 {[%clk 0:02:41]} 5. Qc2 {[%clk 0:02:53]}  d5 {[%clk 0:02:35]} 6. Bf4 {[%clk 0:02:46]}  Nxc3 {[%clk 0:02:33]} 7. bxc3 {[%clk 0:02:46]}  Bd6 {[%clk 0:02:34]} 8. Bg5 {[%clk 0:02:43]}  Be7 {[%clk 0:02:34]} 9. h4 {[%clk 0:02:43]}  h6 {[%clk 0:02:32]} 10. Bxe7 {[%clk 0:02:39]}  Kxe7 {[%clk 0:02:33]} 11. e4 {[%clk 0:02:37]}  c6 {[%clk 0:02:11]} 12. Bd3 {[%clk 0:02:27]}  Re8 {[%clk 0:02:07]} 13. O-O {[%clk 0:02:27]}  dxe4 {[%clk 0:02:06]} 14. Bxe4 {[%clk 0:02:27]}  Kf8 {[%clk 0:02:07]} 15. Ne5 {[%clk 0:02:27]}  Nd7 {[%clk 0:02:06]} 16. g3 {[%clk 0:02:17]}  Nxe5 {[%clk 0:02:02]} 17. dxe5 {[%clk 0:02:18]}  Kg8 {[%clk 0:02:03]} 18. Rfd1 {[%clk 0:02:17]}  Qa5 {[%clk 0:02:02]} 19. Qe2 {[%clk 0:02:05]}  Qxc3 {[%clk 0:02:00]} 20. Rab1 {[%clk 0:01:59]}  Rb8 {[%clk 0:01:38]} 21. Rb3 {[%clk 0:01:58]}  Qa5 {[%clk 0:01:36]} 22. Bc2 {[%clk 0:01:37]}  Rd8 {[%clk 0:01:10]} 23. Rxd8+ {[%clk 0:01:30]}  Qxd8 {[%clk 0:01:11]} 24. Qe4 {[%clk 0:01:30]}  g6 {[%clk 0:01:12]} 25. Rd3 {[%clk 0:01:20]}  Qe8 {[%clk 0:01:06]} 26. h5 {[%clk 0:01:19]}  Bd7 {[%clk 0:00:52]} 27. Rd6 {[%clk 0:00:56]}  c5 {[%clk 0:00:32]} 28. Qd3 {[%clk 0:00:40]}  Bc6 {[%clk 0:00:31]} 29. hxg6 {[%clk 0:00:32]}  fxg6 {[%clk 0:00:31]} 30. Qxg6+ {[%clk 0:00:18]}  Qxg6 {[%clk 0:00:32]} 31. Bxg6 {[%clk 0:00:18]}  Kg7 {[%clk 0:00:33]} 32. Rxe6 {[%clk 0:00:16]}  Rd8 {[%clk 0:00:32]} 33. f4 {[%clk 0:00:15]}  Rd2 {[%clk 0:00:08]} 34. f5 {[%clk 0:00:14]}  Rg2+ {[%clk 0:00:07]} 35. Kf1 {[%clk 0:00:14]}  Rxg3 {[%clk 0:00:08]} 36. Re7+ {[%clk 0:00:14]}  Kf8 {[%clk 0:00:08]} 37. Rf7+ {[%clk 0:00:14]}  Kg8 {[%clk 0:00:08]} 38. Rc7 {[%clk 0:00:12]}  Re3 {[%clk 0:00:07]} 39. e6 {[%clk 0:00:12]}  Kf8 {[%clk 0:00:07]} 40. Rf7+ {[%clk 0:00:10]}  Kg8 {[%clk 0:00:07]} 41. Rc7 {[%clk 0:00:11]}  Kf8 {[%clk 0:00:07]} 42. Rh7 {[%clk 0:00:11]}  h5 {[%clk 0:00:03]} 43. Kf2 {[%clk 0:00:11]}  h4 {[%clk 0:00:03]} 44. Kxe3 {[%clk 0:00:11]} 1-0


[Site "https://www.chess.com"]